fUST/lending_fUST_20250322
["ID","MTS","AMOUNT","RATE_DAILY","PERIOD"]
[356539681,1742636536634,-881.73,0.00049981,120]
[356539682,1742636536659,-500.0,0.00049981,120]
[356539683,1742636536684,-982.44,0.00049981,120]
[356539684,1742636536709,-1004.08,0.00049981,120]
[356539685,1742636536734,-881.73,0.00049981,120]
[356539686,1742636536759,-982.44,0.00049981,120]
[356539687,1742636536784,-500.0,0.00049981,120]
[356539688,1742636536810,-1004.08,0.00049981,120]
[356539689,1742636536835,-881.73,0.00049981,120]
[356539690,1742636536860,-982.44,0.00049981,120]
[356539691,1742636536885,-500.0,0.00049981,120]
[356539692,1742636536910,-1004.08,0.00049981,120]
[356539693,1742636536935,-881.73,0.00049981,120]
[356539694,1742636536959,-500.0,0.00049981,120]
[356539695,1742636536984,-982.44,0.00049981,120]
[356539696,1742636537009,-1004.08,0.00049981,120]
[356539697,1742636537038,-881.73,0.00049981,120]
[356539698,1742636537067,-500.0,0.00049981,120]
[356539699,1742636537093,-982.44,0.00049981,120]
[356539700,1742636537120,-1004.08,0.00049981,120]
[356539701,1742636537146,-500.0,0.00049981,120]
[356539702,1742636537174,-982.44,0.00049981,120]
[356539703,1742636537202,-1004.08,0.00049981,120]
[356539704,1742636537230,-881.73,0.00049981,120]
[356539705,1742636537257,-500.0,0.00049981,120]
[356539706,1742636537285,-982.44,0.00049981,120]
[356539707,1742636537313,-1510.64,0.00049981,120]
[356539708,1742636537343,-1004.08,0.00049981,120]
[356539709,1742636537372,-881.73,0.00049981,120]
[356539710,1742636537402,-982.44,0.00049981,120]
[356539711,1742636537430,-1510.64,0.00049981,120]
[356539712,1742636537457,-1004.08,0.00049981,120]
[356539713,1742636537485,-500.0,0.00049981,120]
[356539714,1742636537512,-881.81780954,0.00049981,120]
[356539715,1742636537540,-982.44,0.00049981,120]
[356539716,1742636537570,-1510.64,0.00049981,120]
[356539717,1742636537599,-1004.08,0.00049981,120]
[356539718,1742636537628,-500.0,0.00049981,120]
[356539719,1742636537656,-982.44,0.00049981,120]
[356539720,1742636537684,-1004.08,0.00049981,120]
[356539721,1742636537712,-1510.64,0.00049981,120]
[356539722,1742636537738,-500.0,0.00049981,120]
[356539723,1742636537765,-982.44,0.00049981,120]
[356539724,1742636537792,-1004.14746384,0.00049981,120]
[356539725,1742636537819,-591.20599674,0.00049981,120]
[356539726,1742636537845,-1510.64,0.00049981,120]
[356539727,1742636538098,-982.44,0.00049981,120]
[356539728,1742636538128,-1510.64,0.00049981,120]
[356539729,1742636538156,-982.53847997,0.00049981,120]
[356539730,1742636538185,-1510.64,0.00049981,120]
[356539731,1742636538212,-1510.64,0.00049981,120]
[356539732,1742636538240,-1510.64,0.00049981,120]
[356539733,1742636538269,-1510.64,0.00049981,120]
[356539734,1742636538298,-1510.64,0.00049981,120]
[356539735,1742636538325,-1510.64,0.00049981,120]
[356539736,1742636538353,-1510.64,0.00049981,120]
[356539737,1742636538380,-1510.64,0.00049981,120]
[356539738,1742636538407,-1510.64,0.00049981,120]
[356539739,1742636538435,-1510.64,0.00049981,120]
[356539740,1742636538462,-1510.64,0.00049981,120]
[356539741,1742636538490,-1510.64,0.00049981,120]
[356539742,1742636538521,-1510.64,0.00049981,120]
[356539743,1742636538549,-1510.64,0.00049981,120]
[356539744,1742636538575,-500.0,0.00049981,120]
[356539745,1742636538604,-1510.64,0.00049981,120]
[356539746,1742636538630,-392.43037197,0.00049981,120]
[356539747,1742636538657,-1510.64,0.00049981,120]
[356539748,1742636538683,-1510.64,0.00049981,120]
[356539749,1742636538711,-1510.65572025,0.00049981,120]
[356539750,1742636538737,-529.17,0.00049981,120]
[356539751,1742636538764,-529.17,0.00049981,120]
[356539752,1742636538792,-529.17,0.00049981,120]
[356539753,1742636538819,-529.17,0.00049981,120]
[356539754,1742636538846,-529.17,0.00049981,120]
[356539755,1742636538872,-529.17,0.00049981,120]
[356539756,1742636538900,-529.17,0.00049981,120]
[356539757,1742636538926,-529.17,0.00049981,120]
[356539758,1742636538953,-529.17,0.00049981,120]
[356539759,1742636538980,-529.17,0.00049981,120]
[356539760,1742636539008,-529.17,0.00049981,120]
[356539761,1742636539036,-529.17,0.00049981,120]
[356539762,1742636539066,-529.17,0.00049981,120]
[356539763,1742636539094,-529.17,0.00049981,120]
[356539764,1742636539122,-529.17,0.00049981,120]
[356539765,1742636539151,-529.17,0.00049981,120]
[356539766,1742636539178,-529.17,0.00049981,120]
[356539767,1742636539206,-529.17,0.00049981,120]
[356539768,1742636539233,-529.17,0.00049981,120]
[356539769,1742636539261,-529.17,0.00049981,120]
[356539770,1742636539288,-529.17,0.00049981,120]
[356539771,1742636539314,-1052.72,0.00049981,120]
[356539772,1742636539341,-529.17,0.00049981,120]
[356539773,1742636539367,-1052.72,0.00049981,120]
[356539774,1742636539393,-529.17,0.00049981,120]
[356539775,1742636539419,-1052.72,0.00049981,120]
[356539776,1742636539450,-529.25964472,0.00049981,120]
[356539777,1742636539478,-1052.72,0.00049981,120]
[356539778,1742636539504,-1052.72,0.00049981,120]
[356539779,1742636539531,-1052.72,0.00049981,120]
[356539780,1742636539557,-1052.72,0.00049981,120]
[356539781,1742636539584,-1052.72,0.00049981,120]
[356539782,1742636539610,-1052.72,0.00049981,120]
[356539783,1742636539636,-1052.72,0.00049981,120]
[356539784,1742636539661,-2314.13,0.00049981,120]
[356539785,1742636539687,-1052.72,0.00049981,120]
[356539786,1742636539715,-2314.13,0.00049981,120]
[356539787,1742636539740,-1052.72,0.00049981,120]
[356539788,1742636539765,-2314.13,0.00049981,120]
[356539789,1742636539791,-1052.72,0.00049981,120]
[356539790,1742636539816,-2314.13,0.00049981,120]
[356539791,1742636539841,-1052.72,0.00049981,120]
[356539792,1742636539866,-2314.13,0.00049981,120]
[356539793,1742636539891,-1052.72,0.00049981,120]
[356539794,1742636539917,-1052.72,0.00049981,120]
[356539795,1742636539942,-2314.13,0.00049981,120]
[356539796,1742636539967,-1052.72,0.00049981,120]
[356539797,1742636539992,-2314.13,0.00049981,120]
[356539798,1742636540017,-2314.13,0.00049981,120]
[356539799,1742636540044,-2314.13,0.00049981,120]
[356539800,1742636540069,-1052.72,0.00049981,120]
[356539801,1742636540097,-1052.72,0.00049981,120]
[356539802,1742636540123,-2314.13,0.00049981,120]
[356539803,1742636540151,-1052.72,0.00049981,120]
[356539804,1742636540177,-2314.13,0.00049981,120]
[356539805,1742636540204,-1052.72,0.00049981,120]
[356539806,1742636540230,-2314.13,0.00049981,120]
[356539807,1742636540256,-1052.72,0.00049981,120]
[356539808,1742636540285,-2314.13,0.00049981,120]
[356539809,1742636540311,-1052.72,0.00049981,120]
[356539810,1742636540337,-2314.13,0.00049981,120]
[356539811,1742636540363,-1052.84939743,0.00049981,120]
[356539812,1742636540389,-2314.13,0.00049981,120]
[356539813,1742636540414,-2314.13,0.00049981,120]
[356539814,1742636540439,-2314.13,0.00049981,120]
[356539815,1742636540464,-2314.13,0.00049981,120]
[356539816,1742636540493,-2314.13,0.00049981,120]
[356539817,1742636540517,-2314.13,0.00049981,120]
[356539818,1742636540542,-2314.13,0.00049981,120]
[356539819,1742636540568,-2314.13,0.00049981,120]
[356539820,1742636540595,-2314.13,0.00049981,120]
[356539821,1742636540623,-2314.26754438,0.00049981,120]
[356539822,1742636540649,-586.62,0.00049981,120]
[356539823,1742636540682,-586.62,0.00049981,120]
[356539824,1742636540715,-586.62,0.00049981,120]
[356539825,1742636540744,-586.62,0.00049981,120]
[356539826,1742636540775,-586.62,0.00049981,120]
[356539827,1742636540807,-586.62,0.00049981,120]
[356539828,1742636540839,-586.62,0.00049981,120]
[356539829,1742636540872,-586.62,0.00049981,120]
[356539830,1742636540901,-500.0,0.00049981,120]
[356539831,1742636540932,-586.62,0.00049981,120]
[356539832,1742636540964,-500.0,0.00049981,120]
[356539833,1742636540994,-500.0,0.00049981,120]
[356539834,1742636541022,-586.62,0.00049981,120]
[356539835,1742636541054,-500.0,0.00049981,120]
[356539836,1742636541087,-586.62,0.00049981,120]
[356539837,1742636541119,-500.0,0.00049981,120]
[356539838,1742636541153,-586.62,0.00049981,120]
[356539839,1742636541187,-500.0,0.00049981,120]
[356539840,1742636541214,-586.62,0.00049981,120]
[356539841,1742636541243,-500.0,0.00049981,120]
[356539842,1742636541277,-586.62,0.00049981,120]
[356539843,1742636541308,-516.57947978,0.00049981,120]
[356539844,1742636541338,-586.62,0.00049981,120]
[356539845,1742636541370,-586.62,0.00049981,120]
[356539846,1742636541398,-586.62,0.00049981,120]
[356539847,1742636541427,-586.62,0.00049981,120]
[356539848,1742636541457,-586.62,0.00049981,120]
[356539849,1742636541486,-586.62,0.00049981,120]
[356539850,1742636541515,-586.62,0.00049981,120]
[356539851,1742636541544,-1001.28,0.00049981,120]
[356539852,1742636541572,-1001.28,0.00049981,120]
[356539853,1742636541601,-586.62,0.00049981,120]
[356539854,1742636541629,-1001.28,0.00049981,120]
[356539855,1742636541658,-586.62,0.00049981,120]
[356539856,1742636541686,-1001.28,0.00049981,120]
[356539857,1742636541715,-586.66368893,0.00049981,120]
[356539858,1742636541742,-1001.28,0.00049981,120]
[356539859,1742636541770,-1001.28,0.00049981,120]
[356539860,1742636541799,-500.0,0.00049981,120]
[356539861,1742636541828,-500.0,0.00049981,120]
[356539862,1742636541856,-1001.28,0.00049981,120]
[356539863,1742636541884,-500.0,0.00049981,120]
[356539864,1742636541912,-2465.08,0.00049981,120]
[356539865,1742636541941,-1001.28,0.00049981,120]
[356539866,1742636541971,-500.0,0.00049981,120]
[356539867,1742636541999,-2465.08,0.00049981,120]
[356539868,1742636542027,-500.0,0.00049981,120]
[356539869,1742636542060,-1334.37277357,0.00049981,120]
[356539870,1742636548273,-152.97,0.000327,31]
[356539871,1742636548303,-152.97,0.000327,31]
[356539872,1742636548332,-152.97,0.000327,31]
[356539873,1742636548360,-152.97,0.000327,31]
[356539874,1742636548389,-152.97,0.000327,31]
[356539875,1742636548419,-152.97,0.000327,31]
[356539876,1742636548448,-152.97,0.000327,31]
[356539877,1742636548477,-152.97,0.000327,31]
[356539878,1742636548506,-152.97,0.000327,31]
[356539879,1742636548542,-153.789116,0.0003411,31]
[356539880,1742636548571,-17149.94,0.0003495,60]
[356539881,1742636548597,-500.0,0.0003499,30]
[356539882,1742636548626,-4421.66682948,0.00035,35]
[356539883,1742636548651,-155.94759346,0.00035,30]
[356539884,1742636548676,-158.06,0.00035,69]
[356539885,1742636548701,-1018.7,0.00035,120]
[356539886,1742636548726,-498.81961053,0.00035,30]
[356539887,1742636548756,-115314.57,0.000351,30]
[356539888,1742636548781,-1305.37,0.000351,30]
[356539889,1742636548806,-16459.95,0.000354,30]
[356539890,1742636548832,-8070.75,0.000354,30]
[356539891,1742636548858,-19734.61,0.000354,30]
[356539892,1742636548887,-500.0,0.00036,120]
[356539893,1742636548914,-22611.11986732,0.00036,120]
[356539894,1742636548940,-200.0,0.000362,120]
[356539895,1742636548967,-1155.15153749,0.000362,98]
[356539896,1742636548994,-1155.15153747,0.000362,98]
[356539897,1742636549022,-115314.57,0.000363,30]
[356539898,1742636549051,-1305.37,0.000363,30]
[356539899,1742636549078,-16459.95,0.000367,30]
[356539900,1742636549104,-8070.75,0.000367,30]
[356539901,1742636549130,-19734.61,0.000367,30]
[356539902,1742636549161,-152.97,0.00037,31]
[356539903,1742636549191,-152.97,0.00037,31]
[356539904,1742636549220,-152.97,0.00037,31]
[356539905,1742636549248,-152.97,0.00037,31]
[356539906,1742636549277,-152.97,0.00037,31]
[356539907,1742636549308,-152.97,0.00037,31]
[356539908,1742636549337,-152.97,0.00037,31]
[356539909,1742636549364,-152.97,0.00037,31]
[356539910,1742636549392,-152.97,0.00037,31]
[356539911,1742636549421,-152.97,0.00037,31]
[356539912,1742636549450,-152.97,0.00037,31]
[356539913,1742636549480,-152.97,0.00037,31]
[356539914,1742636549509,-152.97,0.00037,31]
[356539915,1742636549537,-152.97,0.00037,31]
[356539916,1742636549565,-152.97,0.00037,31]
[356539917,1742636549592,-152.97,0.00037,31]
[356539918,1742636549621,-152.97,0.00037,31]
[356539919,1742636549649,-152.97,0.00037,31]
[356539920,1742636549678,-115314.57,0.000374,30]
[356539921,1742636549703,-1305.37,0.000374,30]
[356539922,1742636549730,-150.0,0.000375,112]
[356539923,1742636549755,-16459.95,0.000378,30]
[356539924,1742636549781,-8070.75,0.000378,30]
[356539925,1742636550003,-19734.61,0.000378,30]
[356539926,1742636550032,-500.0,0.00038,120]
[356539927,1742636550064,-286.53764,0.000383,120]
[356539928,1742636550089,-115314.57,0.000384,30]
[356539929,1742636550115,-1305.37,0.000384,30]
[356539930,1742636550140,-151.9,0.000385,120]
[356539931,1742636550165,-16459.95,0.00039,30]
[356539932,1742636550190,-8070.75,0.00039,30]
[356539933,1742636550215,-19734.61,0.00039,30]
[356539934,1742636550240,-77395.98434828,0.00039,120]
[356539935,1742636550267,-1155.15153747,0.00039476,117]
[356539936,1742636550292,-1305.37,0.000395,30]
[356539937,1742636550318,-115314.57,0.000395,30]
[356539938,1742636550344,-1001.12161885,0.000399,120]
[356539939,1742636550368,-646.21793125,0.00039999,31]
[356539940,1742636550393,-357.46005558,0.00039999,31]
[356539941,1742636550418,-500.0,0.00039999,31]
[356539942,1742636550444,-550.72413676,0.00039999,31]
[356539943,1742636550469,-500.0,0.00039999,31]
[356539944,1742636550496,-500.0,0.00039999,31]
[356539945,1742636550523,-512.87627907,0.00039999,31]
[356539946,1742636550549,-500.0,0.00039999,31]
[356539947,1742636550575,-500.0,0.00039999,31]
[356539948,1742636550601,-457.01390289,0.00039999,31]
[356539949,1742636550628,-365.5364581,0.00039999,31]
[356539950,1742636559942,-500.0,0.00039999,31]
[356539951,1742636559969,-325.03500536,0.00039999,31]
[356539952,1742636559995,-500.0,0.00039999,31]
[356539953,1742636560022,-500.0,0.00039999,31]
[356539954,1742636560052,-276.95054197,0.00039999,31]
[356539955,1742636560078,-500.0,0.00039999,31]
[356539956,1742636560106,-252.32141189,0.00039999,31]
[356539957,1742636560135,-10000.0,0.0004,40]
[356539958,1742636560162,-154541.33893032,0.0004,30]
[356539959,1742636560189,-200.0,0.0004,120]
[356539960,1742636560216,-295.0,0.0004,60]
[356539961,1742636560244,-358.0,0.0004,60]
[356539962,1742636560271,-1008.37,0.0004,120]
[356539963,1742636560297,-995.0,0.0004,120]
[356539964,1742636560324,-148979.96586301,0.0004,30]
[356539965,1742636560351,-166.54928784,0.0004,120]
[356539966,1742636560376,-4226.0,0.0004,120]
[356539967,1742636560404,-509.98152884,0.0004,120]
[356539968,1742636560429,-306.0,0.0004,60]
[356539969,1742636560454,-1619.13931147,0.0004,120]
[356539970,1742636560480,-16459.95,0.000406,30]
[356539971,1742636560505,-8070.75,0.000406,30]
[356539972,1742636560532,-19734.61,0.000406,30]
[356539973,1742636560558,-239.69941302,0.00041,120]
[356539974,1742636560587,-152.97,0.000413,31]
[356539975,1742636560616,-152.97,0.000413,31]
[356539976,1742636560644,-152.97,0.000413,31]
[356539977,1742636560673,-152.97,0.000413,31]
[356539978,1742636560702,-152.97,0.000413,31]
[356539979,1742636560734,-152.97,0.000413,31]
[356539980,1742636560761,-152.97,0.000413,31]
[356539981,1742636560789,-152.97,0.000413,31]
[356539982,1742636560817,-152.97,0.000413,31]
[356539983,1742636560846,-152.97,0.000413,31]
[356539984,1742636560874,-152.97,0.000413,31]
[356539985,1742636560903,-152.97,0.000413,31]
[356539986,1742636560931,-152.97,0.000413,31]
[356539987,1742636560959,-152.97,0.000413,31]
[356539988,1742636560990,-152.97,0.000413,31]
[356539989,1742636561018,-152.97,0.000413,31]
[356539990,1742636561051,-152.97,0.000413,31]
[356539991,1742636561080,-152.97,0.000413,31]
[356539992,1742636561108,-200.0,0.00042,120]
[356539993,1742636561134,-1305.37,0.00042,30]
[356539994,1742636561160,-115314.57,0.00042,30]
[356539995,1742636561186,-49962.66136705,0.00042,120]
[356539996,1742636561212,-42263.0,0.00042,120]
[356539997,1742636561238,-4226.0,0.00042,120]
[356539998,1742636561450,-150.0,0.00042,120]
[356539999,1742636561479,-1155.15153747,0.00042914,120]
[356540000,1742636561504,-244.50469651,0.00043,120]
[356540001,1742636561533,-1115.82541043,0.00043744,40]
[356540002,1742636561559,-11289.72525368,0.000438,120]
[356540003,1742636561587,-518.94617509,0.00043835,120]
[356540004,1742636561614,-500.0,0.00043835,120]
[356540005,1742636561640,-230.14229165,0.00043835,120]
[356540006,1742636561665,-451.19,0.00043836,30]
[356540007,1742636561692,-200.0,0.00044,120]
[356540008,1742636561717,-167.5,0.00044,30]
[356540009,1742636561743,-297387.2919744,0.00044,30]
[356540010,1742636564947,-148398.38134197,0.00044,30]
[356540011,1742636564973,-42263.0,0.00044,120]
[356540012,1742636564999,-4226.0,0.00044,120]
[356540013,1742636565027,-2400.0,0.00044187,120]
[356540014,1742636565055,-2400.0,0.00044461,120]
[356540015,1742636565082,-500.0,0.000445,120]
[356540016,1742636565107,-500.0,0.000445,120]
[356540017,1742636565135,-500.0,0.000445,120]
[356540018,1742636565160,-500.0,0.000445,120]
[356540019,1742636565187,-500.0,0.000445,120]
[356540020,1742636565212,-500.0,0.000445,120]
[356540021,1742636565240,-500.0,0.000445,120]
[356540022,1742636565266,-500.0,0.000445,120]
[356540023,1742636565292,-500.0,0.000445,120]
[356540024,1742636565317,-500.0,0.000445,120]
[356540025,1742636565344,-2400.0,0.00044735,120]
[356540026,1742636565372,-10000.0,0.00045,45]
[356540027,1742636565398,-16459.95,0.00045,30]
[356540028,1742636565424,-8070.75,0.00045,30]
[356540029,1742636565450,-19734.61,0.00045,30]
[356540030,1742636565475,-815.38737282,0.00045,120]
[356540031,1742636565502,-151.0,0.00045,120]
[356540032,1742636565527,-240.0,0.00045,120]
[356540033,1742636565553,-6538.50461874,0.00045,120]
[356540034,1742636565581,-20318.00531151,0.00045,120]
[356540035,1742636565607,-2400.0,0.00045009,120]
[356540036,1742636565632,-8571.9567912,0.00045194,120]
[356540037,1742636565659,-8571.9557912,0.00045194,120]
[356540038,1742636565684,-8571.9557912,0.00045194,120]
[356540039,1742636565710,-2704.90804508,0.000452,120]
[356540040,1742636565737,-500.0,0.000455,120]
[356540041,1742636565763,-500.0,0.000455,120]
[356540042,1742636565788,-500.0,0.000455,120]
[356540043,1742636565815,-500.0,0.000455,120]
[356540044,1742636565841,-500.0,0.000455,120]
[356540045,1742636565867,-500.0,0.000455,120]
[356540046,1742636565894,-500.0,0.000455,120]
[356540047,1742636565920,-500.0,0.000455,120]
[356540048,1742636565946,-500.0,0.000455,120]
[356540049,1742636565970,-500.0,0.000455,120]
[356540050,1742636565997,-2400.0,0.00045557,120]
[356540051,1742636566024,-277.74557996,0.000456,120]
[356540052,1742636566055,-152.97,0.000456,39]
[356540053,1742636566087,-152.97,0.000456,39]
[356540054,1742636566117,-152.97,0.000456,39]
[356540055,1742636566148,-152.97,0.000456,39]
[356540056,1742636566177,-152.97,0.000456,39]
[356540057,1742636566206,-152.97,0.000456,39]
[356540058,1742636566234,-152.97,0.000456,39]
[356540059,1742636566263,-152.97,0.000456,39]
[356540060,1742636566292,-152.97,0.000456,39]
[356540061,1742636566322,-152.97,0.000456,39]
[356540062,1742636566352,-152.97,0.000456,39]
[356540063,1742636566381,-152.97,0.000456,39]
[356540064,1742636566410,-152.97,0.000456,39]
[356540065,1742636566439,-152.97,0.000456,39]
[356540066,1742636566648,-152.97,0.000456,39]
[356540067,1742636566677,-152.97,0.000456,39]
[356540068,1742636566705,-152.97,0.000456,39]
[356540069,1742636566734,-152.97,0.000456,39]
[356540070,1742636566759,-2117.37927131,0.0004584,120]
[356540071,1742636566784,-454.59245766,0.0004588,30]
[356540072,1742636566810,-178.98487322,0.000459,120]
[356540073,1742636566835,-701.55627345,0.00045999,120]
[356540074,1742636566861,-10127.8788233,0.00045999,30]
[356540075,1742636566888,-200.0,0.00046,120]
[356540076,1742636566914,-3039.36774217,0.00046,30]
[356540077,1742636566940,-220.01615697,0.00046,120]
[356540078,1742636566966,-2162.8274603,0.00046,120]
[356540079,1742636566991,-1652.66823661,0.00046,30]
[356540080,1742636567017,-426.23465497,0.00046,120]
[356540081,1742636567043,-1748.36908108,0.00046,120]
[356540082,1742636567072,-42263.0,0.00046,120]
[356540083,1742636567100,-4226.0,0.00046,120]
[356540084,1742636567129,-2400.0,0.00046105,120]
[356540085,1742636567156,-189.06,0.0004634,120]
[356540086,1742636567184,-1155.15153747,0.00046352,120]
[356540087,1742636567212,-496069.34278781,0.0004644,30]
[356540088,1742636570023,-900000.0,0.0004644,30]
[356540089,1742636574709,-2603930.65721219,0.0004644,30]
[356540090,1742636574735,-153.789116,0.00046452,120]
[356540091,1742636574761,-420.24743234,0.00046575,30]
[356540092,1742636731124,-237.4014515,0.0003,19]
[356540093,1742636731145,-153.789116,0.00032022,2]
[356540094,1742636731166,-160.0,0.00032236,2]
[356540095,1742636731187,-2396.52724233,0.00032243,2]
[356540096,1742636847092,-500.0,0.00021,2]
[356540097,1742636847117,-160.0,0.0003223,2]
[356540098,1742636847143,-1668.24604255,0.00032249,2]
[356540099,1742636947630,-420.24743234,0.00024953,2]
[356540100,1742637005501,2880.9469103,0.00024953,2]
[356540101,1742637005523,187.95151569,0.00024953,2]
[356540102,1742637005546,886.81127174,0.00024953,2]
[356540103,1742637010326,158.2252012,0.00027248,2]
[356540126,1742637032527,-400.0,0.00032236,2]
[356540127,1742637032537,-10062.41095913,0.00032237,2]
[356540128,1742637032547,-835.00199895,0.00032249,2]
[356540129,1742637032556,-1293.42147443,0.000329,6]
[356540130,1742637032565,-1049.04234378,0.00032995,7]
[356540131,1742637032575,-196.37214522,0.00032997,7]
[356540132,1742637032584,-500.0,0.00032997,7]
[356540133,1742637032593,-271.0826162,0.00032997,7]
[356540134,1742637032602,-500.0,0.00032997,7]
[356540135,1742637032612,-500.0,0.00032997,7]
[356540136,1742637032621,-500.0,0.00032997,7]
[356540137,1742637032631,-500.0,0.00032997,7]
[356540139,1742637032640,-500.0,0.00032997,7]
[356540141,1742637032650,-500.0,0.00032997,7]
[356540143,1742637032659,-615.88651165,0.00032997,7]
[356540146,1742637032668,-500.0,0.00032997,7]
[356540149,1742637032678,-500.0,0.00032997,7]
[356540151,1742637032688,-500.0,0.00032997,7]
[356540153,1742637032697,-500.0,0.00032997,7]
[356540155,1742637032707,-500.0,0.00032997,7]
[356540157,1742637032716,-500.0,0.00032997,7]
[356540159,1742637032726,-500.0,0.00032997,7]
[356540160,1742637032735,-500.0,0.00032997,7]
[356540161,1742637032744,-500.0,0.00032997,7]
[356540162,1742637032754,-834.31595416,0.00032999,7]
[356540163,1742637032763,-10008.041866,0.00033,2]
[356540164,1742637032772,-500.0,0.00033314,5]
[356540165,1742637032782,-500.0,0.00033314,5]
[356540166,1742637032791,-500.0,0.00033314,5]
[356540167,1742637032800,-500.0,0.00033314,5]
[356540168,1742637032809,-298.60244033,0.00033314,5]
[356540169,1742637032818,-165.09905192,0.00033364,2]
[356540170,1742637032828,-759.59,0.00033486,7]
[356540171,1742637032838,-1293.4214742,0.00033486,6]
[356540172,1742637032848,-181.95297038,0.00033558,2]
[356540173,1742637032858,-500.0,0.000338,5]
[356540174,1742637032867,-500.0,0.000338,5]
[356540175,1742637032877,-500.0,0.000338,5]
[356540176,1742637032886,-351.75922718,0.000338,5]
[356540177,1742637032896,-386.70918312,0.000338,5]
[356540178,1742637032905,-509.95336908,0.0003389,2]
[356540179,1742637032915,-500.0,0.00033973,5]
[356540180,1742637032924,-500.0,0.00033973,5]
[356540181,1742637032934,-500.0,0.00033973,5]
[356540182,1742637032944,-500.0,0.00033973,2]
[356540183,1742637032953,-500.0,0.00033973,5]
[356540184,1742637032963,-500.0,0.00033973,5]
[356540185,1742637032972,-276.95054197,0.00033979,7]
[356540186,1742637032982,-500.0,0.00033979,7]
[356540187,1742637032991,-574.74487413,0.00033979,7]
[356540188,1742637033001,-1000.0,0.00033979,2]
[356540189,1742637033010,-600.0,0.00033979,2]
[356540190,1742637033020,-6133.95906147,0.0003398,2]
[356540191,1742637033030,-180.15369521,0.0003398,2]
[356540192,1742637033039,-1238.20953581,0.0003398,2]
[356540193,1742637033049,-151.0,0.00033988,14]
[356540194,1742637033058,-196.603259,0.00033988,14]
[356540195,1742637033069,-3000.0,0.0003399,2]
[356540196,1742637033079,-3599.46872478,0.0003399,2]
[356540231,1742637038487,-500.0,0.00032997,7]
[356540232,1742637038497,-312.55,0.00032997,7]
[356540233,1742637038544,-187.45,0.00032997,7]
[356540234,1742637038553,-500.0,0.00032997,7]
[356540235,1742637038562,-197.27978764,0.00032997,7]
[356540236,1742637038602,-302.72021236,0.00032997,7]
[356540238,1742637038612,-500.0,0.00032997,7]
[356540239,1742637038622,-500.0,0.00032997,7]
[356540240,1742637038631,-500.0,0.00032997,7]
[356540241,1742637038640,-500.0,0.00032997,7]
[356540242,1742637038649,-500.0,0.00032997,7]
[356540243,1742637038658,-500.0,0.00032997,7]
[356540244,1742637038667,-500.0,0.00032997,7]
[356540245,1742637038676,-500.0,0.00032997,7]
[356540246,1742637038685,-500.0,0.00032997,7]
[356540247,1742637038694,-500.0,0.00032997,7]
[356540248,1742637038703,-500.0,0.00032997,7]
[356540249,1742637038713,-834.31595416,0.00033527,2]